{"text_format":"3","workbook":"xlsx","n_sheets":2,"sheets":["PRADŽIA","METŲ TABELIS"],"not_rendered":{"defined_names":2},"read":"whole","date_system":"1900"}

{"sheet":"PRADŽIA","index":0,"n_rows":8,"n_cols":2,"rows_kept":8}
[null,"APIE ŠĮ ŠABLONĄ"]
[null,"Sekite savo valandas per dieną, per savaitę, per mėnesį ir per metus, naudodami šį darbuotojo tabelis."]
[null,"Įveskite pagrindinę informaciją, pvz., darbuotojo vardą, vadovo vardą, el. pašto adresą ir telefono numerį. "]
[null,"Įtraukite valandas į kiekvieno mėnesio lentelę. Registruokite įprastas valandas ir viršvalandžius atskiruose kiekvienos savaitės kiekvienos dienos stulpeliuose. "]
[null,"Bendros darbo valandos, įprastos darbo valandos ir viršvalandžiai apskaičiuojami automatiškai. "]
[null,"Pastabos:"]
[null,"papildomos instrukcijos pateikiamos darbalapio METŲ TABELIS A stulpelyje. Šis tekstas buvo specialiai paslėptas. Norėdami pašalinti tekstą, pasirinkite A stulpelį, tada pasirinkite Naikinti. Norėdami nebeslėpti teksto, pasirinkite A stulpelį, tada pakeiskite šrifto spalvą. "]
[null,"Norėdami sužinoti daugiau apie lenteles, lentelėje paspauskite SHIFT, tada – F10, pasirinkite parinktį LENTELĖ, tada pasirinkite ALTERNATYVUS TEKSTAS."]

{"sheet":"METŲ TABELIS","index":1,"n_rows":132,"n_cols":15,"rows_kept":132,"merged":[[0,1,0,2],[0,4,0,14],[10,6,10,7],[21,6,21,7],[32,6,32,7],[33,4,33,14],[43,6,43,7],[54,6,54,7],[65,6,65,7],[66,4,66,14],[76,6,76,7],[87,6,87,7],[98,6,98,7],[99,4,99,14],[109,6,109,7],[120,6,120,7],[131,6,131,7]]}
["Šiame darbalapyje kurkite dienos, savaitės, mėnesio ar metų darbuotojo tabelį. \nNaudingos instrukcijos, kaip naudoti šią darbaknygę, pateiktos šio stulpelio langeliuose. Paspauskite rodyklę žemyn, kad pradėtumėte.\nŠio darbalapio pavadinimas yra langelyje dešinėje, o Sausis, vasaris, kovas ketvirčio antraštė yra langelyje E1.","DARBUOTOJO \nTABELIS",null,null,"Sausis, vasaris, kovas      Darbuotojo tabelis: Per dieną, per savaitę, per mėnesį, per metus"]
["Įveskite darbuotojo vardas langelyje C2 ir įprastas valandas bei viršvalandžius Sausis lentelėje, pradėdami langelyje E2.","Darbuotojo vardas:",null,null,"Sausis","1 savaitė","Viršvalandžiai","2 savaitė","Viršvalandžiai  ","3 savaitė","Viršvalandžiai   ","4 savaitė","Viršvalandžiai    ","5 savaitė","Viršvalandžiai     "]
["Langelyje C3 įveskite vadovo vardą.","Vadovas:",null,null,"pirmadienis",{"v":8,"d":"8.0"}]
["Langelyje C4 įveskite el. pašto adresą.","El. pašto adresas:",null,null,"antradienis",{"v":8,"d":"8.0"},{"v":2,"d":"2.0"}]
["Langelyje C5 įveskite telefono numerį. Kitas nurodymas yra A9 langelyje.","Telefonas:",null,null,"trečiadienis"]
[{"$nulls":4},"ketvirtadienis"]
[{"$nulls":4},"penktadienis"]
[{"$nulls":4},"šeštadienis"]
["Bendras metų įprastų valandų skaičius automatiškai apskaičiuojamas C9 langelyje.","Įprastos_valandos:",{"$f":"Įprastos_valandos","v":31},null,"sekmadienis"]
["Bendras metų viršvalandžių skaičius automatiškai apskaičiuojamas C10 langelyje.","Viršvalandžiai:",{"$f":"Viršvalandžiai","v":4},null,"Iš viso valandų per savaitę",{"$f":"SUM(F3:F9)","v":{"v":16,"d":"16.0"}},{"v":2,"d":"2.0"},{"v":0,"d":"0.0"},{"v":0,"d":"0.0"},{"v":0,"d":"0.0"},{"v":0,"d":"0.0"},{"v":0,"d":"0.0"},{"v":0,"d":"0.0"},{"v":0,"d":"0.0"},{"v":0,"d":"0.0"}]
["Bendras metų visų valandų skaičius automatiškai apskaičiuojamas C11 langelyje. Sausio bendras įprastų valandų skaičius F11 langelyje ir sausio bendras viršvalandžių skaičius I11 langelyje apskaičiuojami automatiškai. Kitas nurodymas yra A13 langelyje.","Iš viso",{"$f":"Įprastos_valandos+Viršvalandžiai","v":35},null,{"$f":"TEXT(DATEVALUE(Sausis[[#Headers],[Sausis]]&\"  \"&YEAR(TODAY())),\"mmm.\")&\" iš viso: Įprastos valandos\"","v":"saus. iš viso: Įprastos valandos"},{"$f":"SUM(Sausis[1 savaitė],Sausis[2 savaitė],Sausis[3 savaitė],Sausis[4 savaitė],Sausis[5 savaitė])","v":{"v":16,"d":"16.0"}},{"$f":"TEXT(DATEVALUE(Sausis[[#Headers],[Sausis]]&\"  \"&YEAR(TODAY())),\"mmm.\")&\" iš viso: Viršvalandžiai\"","v":"saus. iš viso: Viršvalandžiai"},null,{"$f":"SUM(Sausis[Viršvalandžiai],Sausis[[Viršvalandžiai  ]],Sausis[[Viršvalandžiai   ]],Sausis[[Viršvalandžiai    ]],Sausis[[Viršvalandžiai     ]])","v":{"v":2,"d":"2.0"}}]
[]
["Įveskite įprastas valandas ir viršvalandžius į Vasaris lentelę, pradėdami E13 langelyje. Kitas nurodymas yra A22 langelyje.",{"$nulls":3},"Vasaris","1 savaitė","Viršvalandžiai","2 savaitė","Viršvalandžiai  ","3 savaitė","Viršvalandžiai   ","4 savaitė","Viršvalandžiai    ","5 savaitė","Viršvalandžiai     "]
[{"$nulls":4},"pirmadienis",{"v":8,"d":"8.0"}]
[{"$nulls":4},"antradienis",{"v":7,"d":"7.0"},{"v":2,"d":"2.0"}]
[{"$nulls":4},"trečiadienis"]
[{"$nulls":4},"ketvirtadienis"]
[{"$nulls":4},"penktadienis"]
[{"$nulls":4},"šeštadienis"]
[{"$nulls":4},"sekmadienis"]
[{"$nulls":4},"Iš viso valandų per savaitę",{"$f":"SUM(F14:F20)","v":{"v":15,"d":"15.0"}},{"v":2,"d":"2.0"},{"v":0,"d":"0.0"},{"v":0,"d":"0.0"},{"v":0,"d":"0.0"},{"v":0,"d":"0.0"},{"v":0,"d":"0.0"},{"v":0,"d":"0.0"},{"v":0,"d":"0.0"},{"v":0,"d":"0.0"}]
["Vasario bendras įprastų valandų skaičius F22 langelyje ir vasario bendras viršvalandžių skaičius I22 langelyje apskaičiuojami automatiškai. Kitas nurodymas yra A24 langelyje.",{"$nulls":3},{"$f":"TEXT(DATEVALUE(Vasaris[[#Headers],[Vasaris]]&\"  \"&YEAR(TODAY())),\"mmm.\")&\" iš viso: Įprastos valandos\"","v":"vas. iš viso: Įprastos valandos"},{"$f":"SUM(Vasaris[1 savaitė],Vasaris[2 savaitė],Vasaris[3 savaitė],Vasaris[4 savaitė],Vasaris[5 savaitė])","v":{"v":15,"d":"15.0"}},{"$f":"TEXT(DATEVALUE(Vasaris[[#Headers],[Vasaris]]&\" \"&YEAR(TODAY())),\"mmm.\")&\" iš viso: Viršvalandžiai\"","v":"vas. iš viso: Viršvalandžiai"},null,{"$f":"SUM(Vasaris[Viršvalandžiai],Vasaris[[Viršvalandžiai  ]],Vasaris[[Viršvalandžiai   ]],Vasaris[[Viršvalandžiai    ]],Vasaris[[Viršvalandžiai     ]])","v":{"v":2,"d":"2.0"}}]
[]
["Įveskite įprastas valandas ir viršvalandžius į Kovas lentelę, pradėdami E24 langelyje. Kitas nurodymas yra A33 langelyje.",{"$nulls":3},"Kovas","1 savaitė","Viršvalandžiai","2 savaitė","Viršvalandžiai ","3 savaitė","Viršvalandžiai  ","4 savaitė","Viršvalandžiai    ","5 savaitė","Viršvalandžiai     "]
[{"$nulls":4},"pirmadienis"]
[{"$nulls":4},"antradienis"]
[{"$nulls":4},"trečiadienis"]
[{"$nulls":4},"ketvirtadienis"]
[{"$nulls":4},"penktadienis"]
[{"$nulls":4},"šeštadienis"]
[{"$nulls":4},"sekmadienis"]
[{"$nulls":4},"Iš viso valandų per savaitę",{"$f":"SUM(F25:F31)","v":{"v":0,"d":"0.0"}},{"v":0,"d":"0.0"},{"v":0,"d":"0.0"},{"v":0,"d":"0.0"},{"v":0,"d":"0.0"},{"v":0,"d":"0.0"},{"v":0,"d":"0.0"},{"v":0,"d":"0.0"},{"v":0,"d":"0.0"},{"v":0,"d":"0.0"}]
["Kovo bendras įprastų valandų skaičius F33 langelyje ir kovo bendras viršvalandžių skaičius I33 langelyje apskaičiuojami automatiškai.",{"$nulls":3},{"$f":"TEXT(DATEVALUE(Kovas[[#Headers],[Kovas]]&\" \"&YEAR(TODAY())),\"mmm.\")&\" iš viso: Įprastos valandos\"","v":"kov. iš viso: Įprastos valandos"},{"$f":"SUM(Kovas[1 savaitė],Kovas[2 savaitė],Kovas[3 savaitė],Kovas[4 savaitė],Kovas[5 savaitė])","v":{"v":0,"d":"0.0"}},{"$f":"TEXT(DATEVALUE(Kovas[[#Headers],[Kovas]]&\" \"&YEAR(TODAY())),\"mmm.\")&\" iš viso: Viršvalandžiai\"","v":"kov. iš viso: Viršvalandžiai"},null,{"$f":"SUM(Kovas[Viršvalandžiai],Kovas[[Viršvalandžiai ]],Kovas[[Viršvalandžiai  ]],Kovas[[Viršvalandžiai    ]],Kovas[[Viršvalandžiai     ]])","v":{"v":0,"d":"0.0"}}]
["Kovo, gegužės, birželio antrojo ketvirčio antraštė yra langelyje E34. ",{"$nulls":3},"Balandis, gegužė, birželis      Darbuotojo tabelis: Per dieną, per savaitę, per mėnesį, per metus"]
["Įveskite įprastas valandas ir viršvalandžius į Balandis lentelę, pradėdami E35 langelyje. Kitas nurodymas yra A44 langelyje.",{"$nulls":3},"Balandis","1 savaitė","Viršvalandžiai","2 savaitė","Viršvalandžiai  ","3 savaitė","Viršvalandžiai   ","4 savaitė","Viršvalandžiai    ","5 savaitė","Viršvalandžiai     "]
[{"$nulls":4},"pirmadienis"]
[{"$nulls":4},"antradienis"]
[{"$nulls":4},"trečiadienis"]
[{"$nulls":4},"ketvirtadienis"]
[{"$nulls":4},"penktadienis"]
[{"$nulls":4},"šeštadienis"]
[{"$nulls":4},"sekmadienis"]
[{"$nulls":4},"Iš viso valandų per savaitę",{"$f":"SUM(F36:F42)","v":{"v":0,"d":"0.0"}},{"v":0,"d":"0.0"},{"v":0,"d":"0.0"},{"v":0,"d":"0.0"},{"v":0,"d":"0.0"},{"v":0,"d":"0.0"},{"v":0,"d":"0.0"},{"v":0,"d":"0.0"},{"v":0,"d":"0.0"},{"v":0,"d":"0.0"}]
["Balandžio bendras įprastų valandų skaičius F44 langelyje ir balandžio bendras viršvalandžių skaičius I44 langelyje apskaičiuojami automatiškai. Kitas nurodymas yra A46 langelyje.",{"$nulls":3},{"$f":"TEXT(DATEVALUE(Balandis[[#Headers],[Balandis]]&\" \"&YEAR(TODAY())),\"mmm.\")&\" iš viso: Įprastos valandos\"","v":"bal. iš viso: Įprastos valandos"},{"$f":"SUM(Balandis[1 savaitė],Balandis[2 savaitė],Balandis[3 savaitė],Balandis[4 savaitė],Balandis[5 savaitė])","v":{"v":0,"d":"0.0"}},{"$f":"TEXT(DATEVALUE(Balandis[[#Headers],[Balandis]]&\" \"&YEAR(TODAY())),\"mmm.\")&\" iš viso: Viršvalandžiai\"","v":"bal. iš viso: Viršvalandžiai"},null,{"$f":"SUM(Balandis[Viršvalandžiai],Balandis[[Viršvalandžiai  ]],Balandis[[Viršvalandžiai   ]],Balandis[[Viršvalandžiai    ]],Balandis[[Viršvalandžiai     ]])","v":{"v":0,"d":"0.0"}}]
[]
["Įveskite įprastas valandas ir viršvalandžius į Gegužė lentelę, pradėdami E46 langelyje. Kitas nurodymas yra A55 langelyje.",{"$nulls":3},"Gegužė","1 savaitė","Viršvalandžiai","2 savaitė","Viršvalandžiai  ","3 savaitė","Viršvalandžiai   ","4 savaitė","Viršvalandžiai    ","5 savaitė","Viršvalandžiai     "]
[{"$nulls":4},"pirmadienis"]
[{"$nulls":4},"antradienis"]
[{"$nulls":4},"trečiadienis"]
[{"$nulls":4},"ketvirtadienis"]
[{"$nulls":4},"penktadienis"]
[{"$nulls":4},"šeštadienis"]
[{"$nulls":4},"sekmadienis"]
[{"$nulls":4},"Iš viso valandų per savaitę",{"$f":"SUM(F47:F53)","v":{"v":0,"d":"0.0"}},{"v":0,"d":"0.0"},{"v":0,"d":"0.0"},{"v":0,"d":"0.0"},{"v":0,"d":"0.0"},{"v":0,"d":"0.0"},{"v":0,"d":"0.0"},{"v":0,"d":"0.0"},{"v":0,"d":"0.0"},{"v":0,"d":"0.0"}]
["Gegužės bendras įprastų valandų skaičius F55 langelyje ir gegužės bendras viršvalandžių skaičius I55 langelyje apskaičiuojami automatiškai. Kitas nurodymas yra A57 langelyje.",{"$nulls":3},{"$f":"TEXT(DATEVALUE(Gegužė[[#Headers],[Gegužė]]&\" \"&YEAR(TODAY())),\"mmm.\")&\" iš viso: Įprastos valandos\"","v":"geg. iš viso: Įprastos valandos"},{"$f":"SUM(Gegužė[1 savaitė],Gegužė[2 savaitė],Gegužė[3 savaitė],Gegužė[4 savaitė],Gegužė[5 savaitė])","v":{"v":0,"d":"0.0"}},{"$f":"TEXT(DATEVALUE(Gegužė[[#Headers],[Gegužė]]&\" \"&YEAR(TODAY())),\"mmm.\")&\" iš viso: Viršvalandžiai\"","v":"geg. iš viso: Viršvalandžiai"},null,{"$f":"SUM(Gegužė[Viršvalandžiai],Gegužė[[Viršvalandžiai  ]],Gegužė[[Viršvalandžiai   ]],Gegužė[[Viršvalandžiai    ]],Gegužė[[Viršvalandžiai     ]])","v":{"v":0,"d":"0.0"}}]
[]
["Įveskite įprastas valandas ir viršvalandžius į Birželis lentelę, pradėdami E57 langelyje. Kitas nurodymas yra A66 langelyje.",{"$nulls":3},"Birželis","1 savaitė","Viršvalandžiai","2 savaitė","Viršvalandžiai  ","3 savaitė","Viršvalandžiai   ","4 savaitė","Viršvalandžiai    ","5 savaitė","Viršvalandžiai     "]
[{"$nulls":4},"pirmadienis"]
[{"$nulls":4},"antradienis"]
[{"$nulls":4},"trečiadienis"]
[{"$nulls":4},"ketvirtadienis"]
[{"$nulls":4},"penktadienis"]
[{"$nulls":4},"šeštadienis"]
[{"$nulls":4},"sekmadienis"]
[{"$nulls":4},"Iš viso valandų per savaitę",{"$f":"SUM(F58:F64)","v":{"v":0,"d":"0.0"}},{"v":0,"d":"0.0"},{"v":0,"d":"0.0"},{"v":0,"d":"0.0"},{"v":0,"d":"0.0"},{"v":0,"d":"0.0"},{"v":0,"d":"0.0"},{"v":0,"d":"0.0"},{"v":0,"d":"0.0"},{"v":0,"d":"0.0"}]
["Birželio bendras įprastų valandų skaičius F66 langelyje ir birželio bendras viršvalandžių skaičius I66 langelyje apskaičiuojami automatiškai.",{"$nulls":3},{"$f":"TEXT(DATEVALUE(Birželis[[#Headers],[Birželis]]&\" \"&YEAR(TODAY())),\"mmm.\")&\" iš viso: Įprastos valandos\"","v":"birž. iš viso: Įprastos valandos"},{"$f":"SUM(Birželis[1 savaitė],Birželis[2 savaitė],Birželis[3 savaitė],Birželis[4 savaitė],Birželis[5 savaitė])","v":{"v":0,"d":"0.0"}},{"$f":"TEXT(DATEVALUE(Birželis[[#Headers],[Birželis]]&\" \"&YEAR(TODAY())),\"mmm.\")&\" iš viso: Viršvalandžiai\"","v":"birž. iš viso: Viršvalandžiai"},null,{"$f":"SUM(Birželis[Viršvalandžiai],Birželis[[Viršvalandžiai  ]],Birželis[[Viršvalandžiai   ]],Birželis[[Viršvalandžiai    ]],Birželis[[Viršvalandžiai     ]])","v":{"v":0,"d":"0.0"}}]
["Liepos, rugpjūčio, rugsėjo trečiojo ketvirčio antraštė yra langelyje E67. ",{"$nulls":3},"Liepa, rugpjūtis, rugsėjis      Darbuotojo tabelis: Per dieną, per savaitę, per mėnesį, per metus"]
["Įveskite įprastas valandas ir viršvalandžius į Liepa lentelę, pradėdami E68 langelyje. Kitas nurodymas yra A77 langelyje.",{"$nulls":3},"Liepa","1 savaitė","Viršvalandžiai","2 savaitė","Viršvalandžiai ","3 savaitė","Viršvalandžiai  ","4 savaitė","Viršvalandžiai   ","5 savaitė","Viršvalandžiai     "]
[{"$nulls":4},"pirmadienis"]
[{"$nulls":4},"antradienis"]
[{"$nulls":4},"trečiadienis"]
[{"$nulls":4},"ketvirtadienis"]
[{"$nulls":4},"penktadienis"]
[{"$nulls":4},"šeštadienis"]
[{"$nulls":4},"sekmadienis"]
[{"$nulls":4},"Iš viso valandų per savaitę",{"$f":"SUM(F69:F75)","v":{"v":0,"d":"0.0"}},{"v":0,"d":"0.0"},{"v":0,"d":"0.0"},{"v":0,"d":"0.0"},{"v":0,"d":"0.0"},{"v":0,"d":"0.0"},{"v":0,"d":"0.0"},{"v":0,"d":"0.0"},{"v":0,"d":"0.0"},{"v":0,"d":"0.0"}]
["Liepos bendras įprastų valandų skaičius F77 langelyje ir liepos bendras viršvalandžių skaičius I77 langelyje apskaičiuojami automatiškai. Kitas nurodymas yra A79 langelyje.",{"$nulls":3},{"$f":"TEXT(DATEVALUE(Liepa[[#Headers],[Liepa]]&\" \"&YEAR(TODAY())),\"mmm.\")&\" iš viso: Įprastos valandos\"","v":"liep. iš viso: Įprastos valandos"},{"$f":"SUM(Liepa[1 savaitė],Liepa[2 savaitė],Liepa[3 savaitė],Liepa[4 savaitė],Liepa[5 savaitė])","v":{"v":0,"d":"0.0"}},{"$f":"TEXT(DATEVALUE(Liepa[[#Headers],[Liepa]]&\" \"&YEAR(TODAY())),\"mmm.\")&\" iš viso: Viršvalandžiai\"","v":"liep. iš viso: Viršvalandžiai"},null,{"$f":"SUM(Liepa[Viršvalandžiai],Liepa[[Viršvalandžiai ]],Liepa[[Viršvalandžiai  ]],Liepa[[Viršvalandžiai   ]],Liepa[[Viršvalandžiai     ]])","v":{"v":0,"d":"0.0"}}]
[]
["Įveskite įprastas valandas ir viršvalandžius į Rugpjūtis lentelę, pradėdami E79 langelyje. Kitas nurodymas yra A88 langelyje.",{"$nulls":3},"Rugpjūtis","1 savaitė","Viršvalandžiai","2 savaitė","Viršvalandžiai ","3 savaitė","Viršvalandžiai   ","4 savaitė","Viršvalandžiai  ","5 savaitė","Viršvalandžiai    "]
[{"$nulls":4},"pirmadienis"]
[{"$nulls":4},"antradienis"]
[{"$nulls":4},"trečiadienis"]
[{"$nulls":4},"ketvirtadienis"]
[{"$nulls":4},"penktadienis"]
[{"$nulls":4},"šeštadienis"]
[{"$nulls":4},"sekmadienis"]
[{"$nulls":4},"Iš viso valandų per savaitę",{"$f":"SUBTOTAL(109,Rugpjūtis[1 savaitė])","v":{"v":0,"d":"0.0"}},{"$f":"SUBTOTAL(109,Rugpjūtis[Viršvalandžiai])","v":{"v":0,"d":"0.0"}},{"$f":"SUBTOTAL(109,Rugpjūtis[2 savaitė])","v":{"v":0,"d":"0.0"}},{"$f":"SUBTOTAL(109,Rugpjūtis[[Viršvalandžiai ]])","v":{"v":0,"d":"0.0"}},{"$f":"SUBTOTAL(109,Rugpjūtis[3 savaitė])","v":{"v":0,"d":"0.0"}},{"$f":"SUBTOTAL(109,Rugpjūtis[[Viršvalandžiai   ]])","v":{"v":0,"d":"0.0"}},{"$f":"SUBTOTAL(109,Rugpjūtis[4 savaitė])","v":{"v":0,"d":"0.0"}},{"$f":"SUBTOTAL(109,Rugpjūtis[[Viršvalandžiai  ]])","v":{"v":0,"d":"0.0"}},{"$f":"SUBTOTAL(109,Rugpjūtis[5 savaitė])","v":{"v":0,"d":"0.0"}},{"$f":"SUBTOTAL(109,Rugpjūtis[[Viršvalandžiai    ]])","v":{"v":0,"d":"0.0"}}]
["Rugpjūčio bendras įprastų valandų skaičius F88 langelyje ir rugpjūčio bendras viršvalandžių skaičius I88 langelyje apskaičiuojami automatiškai. Kitas nurodymas yra A90 langelyje.",{"$nulls":3},{"$f":"TEXT(DATEVALUE(Rugpjūtis[[#Headers],[Rugpjūtis]]&\" \"&YEAR(TODAY())),\"mmm.\")&\" iš viso: Įprastos valandos\"","v":"rugp. iš viso: Įprastos valandos"},{"$f":"SUM(Rugpjūtis[1 savaitė],Rugpjūtis[2 savaitė],Rugpjūtis[3 savaitė],Rugpjūtis[4 savaitė],Rugpjūtis[5 savaitė])","v":{"v":0,"d":"0.0"}},{"$f":"TEXT(DATEVALUE(Rugpjūtis[[#Headers],[Rugpjūtis]]&\" \"&YEAR(TODAY())),\"mmm.\")&\" iš viso: Viršvalandžiai\"","v":"rugp. iš viso: Viršvalandžiai"},null,{"$f":"SUM(Rugpjūtis[Viršvalandžiai],Rugpjūtis[[Viršvalandžiai ]],Rugpjūtis[[Viršvalandžiai   ]],Rugpjūtis[[Viršvalandžiai  ]],Rugpjūtis[[Viršvalandžiai    ]])","v":{"v":0,"d":"0.0"}}]
[]
["Įveskite įprastas valandas ir viršvalandžius į Rugsėjis lentelę, pradėdami E90 langelyje. Kitas nurodymas yra A99 langelyje.",{"$nulls":3},"Rugsėjis","1 savaitė","Viršvalandžiai","2 savaitė","Viršvalandžiai ","3 savaitė","Viršvalandžiai  ","4 savaitė","Viršvalandžiai   ","5 savaitė","Viršvalandžiai    "]
[{"$nulls":4},"pirmadienis"]
[{"$nulls":4},"antradienis"]
[{"$nulls":4},"trečiadienis"]
[{"$nulls":4},"ketvirtadienis"]
[{"$nulls":4},"penktadienis"]
[{"$nulls":4},"šeštadienis"]
[{"$nulls":4},"sekmadienis"]
[{"$nulls":4},"Iš viso valandų per savaitę",{"$f":"SUBTOTAL(109,Rugsėjis[1 savaitė])","v":{"v":0,"d":"0.0"}},{"$f":"SUBTOTAL(109,Rugsėjis[Viršvalandžiai])","v":{"v":0,"d":"0.0"}},{"$f":"SUBTOTAL(109,Rugsėjis[2 savaitė])","v":{"v":0,"d":"0.0"}},{"$f":"SUBTOTAL(109,Rugsėjis[[Viršvalandžiai ]])","v":{"v":0,"d":"0.0"}},{"$f":"SUBTOTAL(109,Rugsėjis[3 savaitė])","v":{"v":0,"d":"0.0"}},{"$f":"SUBTOTAL(109,Rugsėjis[[Viršvalandžiai  ]])","v":{"v":0,"d":"0.0"}},{"$f":"SUBTOTAL(109,Rugsėjis[4 savaitė])","v":{"v":0,"d":"0.0"}},{"$f":"SUBTOTAL(109,Rugsėjis[[Viršvalandžiai   ]])","v":{"v":0,"d":"0.0"}},{"$f":"SUBTOTAL(109,Rugsėjis[5 savaitė])","v":{"v":0,"d":"0.0"}},{"$f":"SUBTOTAL(109,Rugsėjis[[Viršvalandžiai    ]])","v":{"v":0,"d":"0.0"}}]
["Rugsėjo bendras įprastų valandų skaičius F99 langelyje ir rugsėjo bendras viršvalandžių skaičius I99 langelyje apskaičiuojami automatiškai.",{"$nulls":3},{"$f":"TEXT(DATEVALUE(Rugsėjis[[#Headers],[Rugsėjis]]&\" \"&YEAR(TODAY())),\"mmm.\")&\" iš viso: Įprastos valandos\"","v":"rugs. iš viso: Įprastos valandos"},{"$f":"SUM(Rugsėjis[1 savaitė],Rugsėjis[2 savaitė],Rugsėjis[3 savaitė],Rugsėjis[4 savaitė],Rugsėjis[5 savaitė])","v":{"v":0,"d":"0.0"}},{"$f":"TEXT(DATEVALUE(Rugsėjis[[#Headers],[Rugsėjis]]&\" \"&YEAR(TODAY())),\"mmm.\")&\" iš viso: Viršvalandžiai\"","v":"rugs. iš viso: Viršvalandžiai"},null,{"$f":"SUM(Rugsėjis[Viršvalandžiai],Rugsėjis[[Viršvalandžiai ]],Rugsėjis[[Viršvalandžiai  ]],Rugsėjis[[Viršvalandžiai   ]],Rugsėjis[[Viršvalandžiai    ]])","v":{"v":0,"d":"0.0"}}]
["Spalio, lapkričio, gruodžio ketvirtojo ketvirčio antraštė yra E100 langelyje. ",{"$nulls":3},"Spalis, lapkritis, gruodis      Darbuotojo tabelis: Per dieną, per savaitę, per mėnesį, per metus"]
["Įveskite įprastas valandas ir viršvalandžius į Spalis lentelę, pradėdami E101 langelyje. Kitas nurodymas yra A110 langelyje.",{"$nulls":3},"Spalis","1 savaitė","Viršvalandžiai","2 savaitė","Viršvalandžiai ","3 savaitė","Viršvalandžiai  ","4 savaitė","Viršvalandžiai   ","5 savaitė","Viršvalandžiai    "]
[{"$nulls":4},"pirmadienis"]
[{"$nulls":4},"antradienis"]
[{"$nulls":4},"trečiadienis"]
[{"$nulls":4},"ketvirtadienis"]
[{"$nulls":4},"penktadienis"]
[{"$nulls":4},"šeštadienis"]
[{"$nulls":4},"sekmadienis"]
[{"$nulls":4},"Iš viso valandų per savaitę",{"$f":"SUBTOTAL(109,Spalis[1 savaitė])","v":{"v":0,"d":"0.0"}},{"$f":"SUBTOTAL(109,Spalis[Viršvalandžiai])","v":{"v":0,"d":"0.0"}},{"$f":"SUBTOTAL(109,Spalis[2 savaitė])","v":{"v":0,"d":"0.0"}},{"$f":"SUBTOTAL(109,Spalis[[Viršvalandžiai ]])","v":{"v":0,"d":"0.0"}},{"$f":"SUBTOTAL(109,Spalis[3 savaitė])","v":{"v":0,"d":"0.0"}},{"$f":"SUBTOTAL(109,Spalis[[Viršvalandžiai  ]])","v":{"v":0,"d":"0.0"}},{"$f":"SUBTOTAL(109,Spalis[4 savaitė])","v":{"v":0,"d":"0.0"}},{"$f":"SUBTOTAL(109,Spalis[[Viršvalandžiai   ]])","v":{"v":0,"d":"0.0"}},{"$f":"SUBTOTAL(109,Spalis[5 savaitė])","v":{"v":0,"d":"0.0"}},{"$f":"SUBTOTAL(109,Spalis[[Viršvalandžiai    ]])","v":{"v":0,"d":"0.0"}}]
["Spalio bendras įprastų valandų skaičius F110 langelyje ir spalio bendras viršvalandžių skaičius I110 langelyje apskaičiuojami automatiškai. Kitas nurodymas yra A112 langelyje.",{"$nulls":3},{"$f":"TEXT(DATEVALUE(Spalis[[#Headers],[Spalis]]&\" \"&YEAR(TODAY())),\"mmm.\")&\" iš viso: Įprastos valandos\"","v":"spal. iš viso: Įprastos valandos"},{"$f":"SUM(Spalis[1 savaitė],Spalis[2 savaitė],Spalis[3 savaitė],Spalis[4 savaitė],Spalis[5 savaitė])","v":{"v":0,"d":"0.0"}},{"$f":"TEXT(DATEVALUE(Spalis[[#Headers],[Spalis]]&\" \"&YEAR(TODAY())),\"mmm.\")&\" iš viso: Viršvalandžiai\"","v":"spal. iš viso: Viršvalandžiai"},null,{"$f":"SUM(Spalis[Viršvalandžiai],Spalis[[Viršvalandžiai ]],Spalis[[Viršvalandžiai  ]],Spalis[[Viršvalandžiai   ]],Spalis[[Viršvalandžiai    ]])","v":{"v":0,"d":"0.0"}}]
[]
["Įveskite įprastas valandas ir viršvalandžius į lapkričio lentelę, pradėdami E112 langelyje. Kitas nurodymas yra A121 langelyje.",{"$nulls":3},"Lapkritis","1 savaitė","Viršvalandžiai","2 savaitė","Viršvalandžiai ","3 savaitė","Viršvalandžiai  ","4 savaitė","Viršvalandžiai    ","5 savaitė","Viršvalandžiai     "]
[{"$nulls":4},"pirmadienis"]
[{"$nulls":4},"antradienis"]
[{"$nulls":4},"trečiadienis"]
[{"$nulls":4},"ketvirtadienis"]
[{"$nulls":4},"penktadienis"]
[{"$nulls":4},"šeštadienis"]
[{"$nulls":4},"sekmadienis"]
[{"$nulls":4},"Iš viso valandų per savaitę",{"$f":"SUBTOTAL(109,Lapkritis[1 savaitė])","v":{"v":0,"d":"0.0"}},{"$f":"SUBTOTAL(109,Lapkritis[Viršvalandžiai])","v":{"v":0,"d":"0.0"}},{"$f":"SUBTOTAL(109,Lapkritis[2 savaitė])","v":{"v":0,"d":"0.0"}},{"$f":"SUBTOTAL(109,Lapkritis[[Viršvalandžiai ]])","v":{"v":0,"d":"0.0"}},{"$f":"SUBTOTAL(109,Lapkritis[3 savaitė])","v":{"v":0,"d":"0.0"}},{"$f":"SUBTOTAL(109,Lapkritis[[Viršvalandžiai  ]])","v":{"v":0,"d":"0.0"}},{"$f":"SUBTOTAL(109,Lapkritis[4 savaitė])","v":{"v":0,"d":"0.0"}},{"$f":"SUBTOTAL(109,Lapkritis[[Viršvalandžiai    ]])","v":{"v":0,"d":"0.0"}},{"$f":"SUBTOTAL(109,Lapkritis[5 savaitė])","v":{"v":0,"d":"0.0"}},{"$f":"SUBTOTAL(109,Lapkritis[[Viršvalandžiai     ]])","v":{"v":0,"d":"0.0"}}]
["Lapkričio bendras įprastų valandų skaičius F121 langelyje ir lapkričio bendras viršvalandžių skaičius I121 langelyje apskaičiuojami automatiškai. Kitas nurodymas yra A123 langelyje.",{"$nulls":3},{"$f":"TEXT(DATEVALUE(Lapkritis[[#Headers],[Lapkritis]]&\" \"&YEAR(TODAY())),\"mmm.\")&\" iš viso: Įprastos valandos\"","v":"lapkr. iš viso: Įprastos valandos"},{"$f":"SUM(Lapkritis[1 savaitė],Lapkritis[2 savaitė],Lapkritis[3 savaitė],Lapkritis[4 savaitė],Lapkritis[5 savaitė])","v":{"v":0,"d":"0.0"}},{"$f":"TEXT(DATEVALUE(Lapkritis[[#Headers],[Lapkritis]]&\" \"&YEAR(TODAY())),\"mmm.\")&\" iš viso: Viršvalandžiai\"","v":"lapkr. iš viso: Viršvalandžiai"},null,{"$f":"SUM(Lapkritis[Viršvalandžiai],Lapkritis[[Viršvalandžiai ]],Lapkritis[[Viršvalandžiai  ]],Lapkritis[[Viršvalandžiai    ]],Lapkritis[[Viršvalandžiai     ]])","v":{"v":0,"d":"0.0"}}]
[]
["Įveskite įprastas valandas ir viršvalandžius į Gruodis lentelę, pradėdami E123 langelyje. Kitas nurodymas yra A132 langelyje.",{"$nulls":3},"Gruodis","1 savaitė","Viršvalandžiai","2 savaitė","Viršvalandžiai ","3 savaitė","Viršvalandžiai  ","4 savaitė","Viršvalandžiai   ","5 savaitė","Viršvalandžiai    "]
[{"$nulls":4},"pirmadienis"]
[{"$nulls":4},"antradienis"]
[{"$nulls":4},"trečiadienis"]
[{"$nulls":4},"ketvirtadienis"]
[{"$nulls":4},"penktadienis"]
[{"$nulls":4},"šeštadienis"]
[{"$nulls":4},"sekmadienis"]
[{"$nulls":4},"Iš viso valandų per savaitę",{"$f":"SUBTOTAL(109,Gruodis[1 savaitė])","v":{"v":0,"d":"0.0"}},{"$f":"SUBTOTAL(109,Gruodis[Viršvalandžiai])","v":{"v":0,"d":"0.0"}},{"$f":"SUBTOTAL(109,Gruodis[2 savaitė])","v":{"v":0,"d":"0.0"}},{"$f":"SUBTOTAL(109,Gruodis[[Viršvalandžiai ]])","v":{"v":0,"d":"0.0"}},{"$f":"SUBTOTAL(109,Gruodis[3 savaitė])","v":{"v":0,"d":"0.0"}},{"$f":"SUBTOTAL(109,Gruodis[[Viršvalandžiai  ]])","v":{"v":0,"d":"0.0"}},{"$f":"SUBTOTAL(109,Gruodis[4 savaitė])","v":{"v":0,"d":"0.0"}},{"$f":"SUBTOTAL(109,Gruodis[[Viršvalandžiai   ]])","v":{"v":0,"d":"0.0"}},{"$f":"SUBTOTAL(109,Gruodis[5 savaitė])","v":{"v":0,"d":"0.0"}},{"$f":"SUBTOTAL(109,Gruodis[[Viršvalandžiai    ]])","v":{"v":0,"d":"0.0"}}]
["Gruodžio bendras įprastų valandų skaičius F132 langelyje ir gruodžio bendras viršvalandžių skaičius I132 langelyje apskaičiuojami automatiškai.",{"$nulls":3},{"$f":"TEXT(DATEVALUE(Gruodis[[#Headers],[Gruodis]]&\" \"&YEAR(TODAY())),\"mmm.\")&\" iš viso: Įprastos valandos\"","v":"gruod. iš viso: Įprastos valandos"},{"$f":"SUM(Gruodis[1 savaitė],Gruodis[2 savaitė],Gruodis[3 savaitė],Gruodis[4 savaitė],Gruodis[5 savaitė])","v":{"v":0,"d":"0.0"}},{"$f":"TEXT(DATEVALUE(Gruodis[[#Headers],[Gruodis]]&\" \"&YEAR(TODAY())),\"mmm.\")&\" iš viso: Viršvalandžiai\"","v":"gruod. iš viso: Viršvalandžiai"},null,{"$f":"SUM(G124:G130,I124:I130,K124:K130,M124:M130,O124:O130)","v":{"v":0,"d":"0.0"}}]